bitfinex/quotes_BTCUSD_20250901
["timestamp","ask_amount","ask_price","bid_price","bid_amount"]
[1756704705958,0.00149465,107810.0,107800.0,0.57530417]
[1756704706377,0.21336434,107820.0,107810.0,0.18551154]
[1756704706593,0.37100434,107820.0,107810.0,0.18551154]
[1756704706757,0.37100434,107820.0,107800.0,0.57530417]
[1756704706911,0.37010074,107820.0,107810.0,0.18551154]
[1756704709078,0.37010074,107820.0,107800.0,0.57530417]
[1756704709292,0.37010074,107820.0,107810.0,0.18551154]
[1756704709864,0.37010074,107820.0,107800.0,0.57530417]
[1756704710222,0.18551154,107810.0,107800.0,0.57530417]
[1756704711594,0.21338154,107810.0,107800.0,0.57630417]
[1756704712098,0.21338154,107810.0,107800.0,0.59488417]
[1756704712311,0.21338154,107810.0,107800.0,0.57630417]
[1756704712450,0.02787,107810.0,107800.0,0.57630417]
[1756704712814,0.02936465,107810.0,107800.0,0.57730417]
[1756704715506,0.21487619,107810.0,107800.0,0.57730417]
[1756704715708,0.21338154,107810.0,107800.0,0.57730417]
[1756704716594,0.02787,107810.0,107800.0,0.57730417]
[1756704716883,0.02936465,107810.0,107800.0,0.57730417]
[1756704717283,0.21487619,107810.0,107800.0,0.57730417]
[1756704717484,0.21338154,107810.0,107800.0,0.57730417]
[1756704717862,0.54807213,107810.0,107800.0,0.39177542]
[1756704718060,0.54807213,107810.0,107800.0,0.35089229]
[1756704718668,0.54807213,107810.0,107800.0,0.01089229]
[1756704719463,0.21338154,107810.0,107800.0,0.01089229]
[1756704719713,0.31551862,107810.0,107800.0,0.01089229]
[1756704719909,0.65020921,107810.0,107800.0,0.01089229]
[1756704720600,1.09790921,107810.0,107800.0,0.01089229]
[1756704720809,1.09790921,107810.0,107800.0,0.002]
[1756704721430,0.92085862,107810.0,107800.0,0.002]
[1756704721632,0.91170155,107810.0,107800.0,0.002]
[1756704721838,0.75406155,107810.0,107800.0,0.01089229]
[1756704722039,1.24639214,107810.0,107800.0,0.01089229]
[1756704722246,1.25558736,107810.0,107800.0,0.01089229]
[1756704723919,0.92089677,107810.0,107800.0,0.01089229]
[1756704724120,1.25558736,107810.0,107800.0,0.01089229]
[1756704724310,1.25558736,107810.0,107800.0,0.00589229]
[1756704725932,0.75406155,107810.0,107800.0,0.00589229]
[1756704726151,0.91170155,107810.0,107800.0,0.52611163]
[1756704726801,0.91170155,107810.0,107800.0,0.19142104]
[1756704727713,0.91170155,107810.0,107800.0,0.00589229]
[1756704727907,0.91170155,107810.0,107800.0,0.19142104]
[1756704728190,0.75406155,107810.0,107800.0,0.19142104]
[1756704728352,0.91170155,107810.0,107800.0,0.19142104]
[1756704728555,0.91170155,107810.0,107800.0,0.00589229]
[1756704730357,0.91170155,107810.0,107800.0,0.19142104]
[1756704733513,0.98302155,107810.0,107800.0,0.19142104]
[1756704733885,0.98302155,107810.0,107800.0,0.00589229]
[1756704735586,0.98298155,107810.0,107800.0,0.19142104]
[1756704737575,0.54689,107810.0,107800.0,0.52611163]
[1756704737774,0.54689,107810.0,107800.0,0.86611163]
[1756704738191,0.70449,107810.0,107800.0,0.86611163]
[1756704740404,0.54689,107810.0,107800.0,0.86611163]
[1756704740650,0.70449,107810.0,107800.0,0.86021934]
[1756704742431,0.89000154,107810.0,107800.0,0.52552875]
[1756704744792,0.89000154,107810.0,107800.0,0.56756935]
[1756704752113,0.70445,107810.0,107800.0,0.56756935]
[1756704753918,0.70445,107810.0,107800.0,0.90225994]
[1756704754647,0.88996154,107810.0,107800.0,0.56756935]
[1756704755704,0.70445,107810.0,107800.0,0.56756935]
[1756704757083,0.88996154,107810.0,107800.0,0.56756935]
[1756704760408,0.88996154,107810.0,107790.0,0.52023588]
[1756704760409,1.22465213,107810.0,107790.0,0.18554529]
[1756704760661,0.3445434,107800.0,107790.0,0.00589229]
[1756704760884,0.77071935,107800.0,107790.0,0.00589229]
[1756704761470,0.27850876,107800.0,107790.0,0.19143825]
[1756704761677,0.46390376,107800.0,107790.0,0.19143825]
[1756704762726,0.46390376,107800.0,107790.0,0.19243825]
[1756704762931,0.46390376,107800.0,107790.0,0.19443825]
[1756704763115,0.46390376,107800.0,107790.0,0.19343825]
[1756704763455,0.46390376,107800.0,107790.0,0.19543825]
[1756704769059,0.30638376,107800.0,107790.0,0.19543825]
[1756704769321,0.46390376,107800.0,107790.0,0.19543825]
[1756704771100,0.46390376,107800.0,107790.0,0.00989229]
[1756704772550,0.46390376,107800.0,107790.0,0.19543825]
[1756704772914,0.46390376,107800.0,107790.0,0.00989229]
[1756704773115,0.46390376,107800.0,107790.0,0.19543825]
[1756704774136,0.46390376,107800.0,107790.0,0.00989229]
[1756704774536,0.46390376,107800.0,107790.0,0.01087029]
[1756704775327,0.46390376,107800.0,107790.0,0.19641625]
[1756704776175,0.30638376,107800.0,107790.0,0.19641625]
[1756704776386,0.46390376,107800.0,107790.0,0.19641625]
[1756704780792,0.12085501,107800.0,107790.0,0.19641625]
[1756704780996,0.27982966,107800.0,107790.0,0.19641625]
[1756704781229,0.46386376,107800.0,107790.0,0.19641625]
[1756704781406,0.46386376,107800.0,107790.0,0.53110684]
[1756704782190,0.70453269,107810.0,107800.0,0.18552875]
[1756704782355,0.9828657,107810.0,107800.0,0.52021934]
[1756704782556,0.63987301,107810.0,107800.0,0.86021934]
[1756704782756,0.76948001,107810.0,107800.0,0.86021934]
[1756704783360,0.76948001,107810.0,107800.0,0.86121934]
[1756704783571,0.95499155,107810.0,107800.0,0.86221934]
[1756704783794,0.95499155,107810.0,107800.0,0.52752875]
[1756704788249,0.76948001,107810.0,107800.0,0.86221934]
[1756704789223,0.51902,107810.0,107800.0,0.86221934]
[1756704789427,0.07132,107810.0,107800.0,0.86221934]
[1756704789641,0.027873,107820.0,107800.0,0.86221934]
[1756704789843,0.07132,107830.0,107820.0,0.18549434]
[1756704790061,0.44359878,107830.0,107820.0,0.52612469]
[1756704790268,0.44210413,107830.0,107820.0,0.1914341]
[1756704791395,0.44410413,107830.0,107820.0,0.1914341]
[1756704792000,0.44410413,107830.0,107820.0,0.00593976]
[1756704792350,0.44410413,107830.0,107820.0,0.1914341]
[1756704792791,0.44510413,107830.0,107820.0,0.1914341]
[1756704793603,0.44510413,107830.0,107820.0,0.23404761]
[1756704794156,0.44510413,107830.0,107820.0,0.04855327]
[1756704798029,0.44510413,107830.0,107820.0,0.00593976]
[1756704807531,0.28766413,107830.0,107820.0,0.1914341]
[1756704807734,0.44502413,107830.0,107820.0,0.1914341]
[1756704807904,0.44502413,107830.0,107820.0,0.20056151]
[1756704808105,0.44502413,107830.0,107820.0,0.00593976]
[1756704808359,0.28766413,107830.0,107820.0,0.1914341]
[1756704808521,0.44502413,107830.0,107820.0,0.1914341]
[1756704808724,0.44502413,107830.0,107820.0,0.00593976]
[1756704810086,0.87269473,107830.0,107820.0,0.00593976]
[1756704811418,0.87269473,107830.0,107820.0,4.747e-05]
[1756704813409,0.53800414,107830.0,107820.0,4.747e-05]
[1756704813743,0.87269473,107830.0,107820.0,4.747e-05]
[1756704814277,0.89363355,107830.0,107820.0,4.747e-05]
[1756704816862,1.6612739,107830.0,107820.0,4.747e-05]
[1756704818410,1.7112739,107830.0,107820.0,4.747e-05]
[1756704818583,1.7612739,107830.0,107820.0,4.747e-05]
[1756704819015,1.7112739,107830.0,107820.0,4.747e-05]
[1756704819219,1.7612739,107830.0,107820.0,4.747e-05]
[1756704820202,1.09189272,107830.0,107820.0,4.747e-05]
[1756704820425,1.7612739,107830.0,107820.0,4.747e-05]
[1756704820566,1.7112739,107830.0,107820.0,4.747e-05]
[1756704821184,1.7612739,107830.0,107820.0,4.747e-05]
[1756704821591,1.43588991,107830.0,107820.0,4.747e-05]
[1756704822127,1.7705805,107830.0,107820.0,4.747e-05]
[1756704822909,1.67726695,107830.0,107820.0,4.747e-05]
[1756704823088,1.00788577,107830.0,107820.0,4.747e-05]
[1756704823290,1.67726695,107830.0,107820.0,4.747e-05]
[1756704824479,1.62726695,107830.0,107820.0,4.747e-05]
[1756704824799,1.67726695,107830.0,107820.0,4.747e-05]
[1756704825414,1.77021671,107830.0,107820.0,4.747e-05]
[1756704825622,1.67726695,107830.0,107820.0,4.747e-05]
[1756704828935,1.18521636,107830.0,107820.0,4.747e-05]
[1756704829188,1.08521636,107830.0,107820.0,4.747e-05]
[1756704829510,1.24253636,107830.0,107820.0,4.747e-05]
[1756704829949,1.06427754,107830.0,107820.0,4.747e-05]
[1756704830127,1.22159754,107830.0,107820.0,4.747e-05]
[1756704830329,1.24253636,107830.0,107820.0,4.747e-05]
[1756704832039,1.33548612,107830.0,107820.0,4.747e-05]
[1756704832240,1.24253636,107830.0,107820.0,4.747e-05]
[1756704833672,1.57722695,107830.0,107820.0,4.747e-05]
[1756704834284,0.18552875,107800.0,107790.0,0.000978]
[1756704834567,0.50710876,107800.0,107790.0,0.000978]
[1756704834952,0.53498576,107800.0,107790.0,0.000978]
[1756704835519,0.53498576,107800.0,107790.0,0.002978]
[1756704836348,0.86967635,107800.0,107790.0,0.002978]
[1756704836543,0.86967635,107800.0,107790.0,0.004978]
[1756704837214,0.86967635,107800.0,107790.0,0.002978]
[1756704837631,0.87167635,107800.0,107790.0,0.002978]
[1756704837825,0.87167635,107800.0,107790.0,0.000978]
[1756704838020,0.71439635,107800.0,107790.0,0.000978]
[1756704838223,0.87167635,107800.0,107790.0,0.000978]
[1756704838448,0.87467635,107800.0,107790.0,0.000978]
[1756704839065,0.87667635,107800.0,107790.0,0.000978]
[1756704839964,0.87367635,107800.0,107790.0,0.000978]
[1756704840328,0.87167635,107800.0,107790.0,0.000978]
[1756704840532,1.31937635,107800.0,107790.0,0.000978]
[1756704841085,1.32037635,107800.0,107790.0,0.000978]
[1756704841480,1.32237635,107800.0,107790.0,0.000978]
[1756704841655,1.31737635,107800.0,107790.0,0.000978]
[1756704841856,1.31937635,107800.0,107790.0,0.000978]
[1756704842073,1.32137635,107800.0,107790.0,0.000978]
[1756704858426,1.16409635,107800.0,107790.0,0.000978]
[1756704858604,0.98660576,107800.0,107790.0,0.000978]
[1756704859481,0.82940576,107800.0,107790.0,0.000978]
[1756704859655,0.82940576,107800.0,107790.0,0.00060867]
[1756704859656,0.98660576,107800.0,107790.0,0.00060867]
[1756704861910,0.82940576,107800.0,107790.0,0.00060867]
[1756704862094,0.98660576,107800.0,107790.0,0.00060867]
[1756704874420,0.98650576,107800.0,107790.0,0.00060867]
[1756704875609,0.98642576,107800.0,107790.0,0.00060867]
[1756704875810,0.708017,107800.0,107790.0,0.52084522]
[1756704876012,0.708017,107800.0,107790.0,0.52106658]
[1756704876205,0.89354575,107800.0,107790.0,0.52106658]
[1756704876389,0.708017,107800.0,107790.0,0.52106658]
[1756704876570,0.89354575,107800.0,107790.0,0.52106658]
[1756704876775,0.88954575,107800.0,107790.0,0.52106658]
[1756704876983,0.89154575,107800.0,107790.0,0.52106658]
[1756704877296,0.706017,107800.0,107790.0,0.52106658]
[1756704877616,0.88954575,107800.0,107790.0,0.52106658]
[1756704877998,0.88954575,107800.0,107790.0,0.52107284]
[1756704878712,0.704017,107800.0,107790.0,0.52107284]
[1756704879480,0.88954575,107800.0,107790.0,0.52107284]
[1756704879835,0.547897,107800.0,107790.0,0.52107284]
[1756704880068,0.705017,107800.0,107790.0,0.52107284]
[1756704880269,0.707017,107800.0,107790.0,0.52107284]
[1756704880479,0.548897,107800.0,107790.0,1.19599105]
[1756704880679,0.07616852,107820.0,107810.0,0.18551154]
[1756704880878,0.508409,107820.0,107810.0,0.52632204]
[1756704881038,0.099191,107820.0,107810.0,0.52632204]
[1756704881241,0.256271,107820.0,107810.0,0.52632204]
[1756704882091,0.256271,107820.0,107810.0,0.19140383]
[1756704882657,0.44176534,107820.0,107810.0,0.19140383]
[1756704883074,0.44176534,107820.0,107810.0,0.20071964]
[1756704883276,0.44276534,107820.0,107810.0,0.20071964]
[1756704883496,0.44476534,107820.0,107810.0,0.20071964]
[1756704883696,0.259271,107820.0,107810.0,0.20071964]
[1756704884271,0.44476534,107820.0,107810.0,0.19140383]
[1756704885284,0.259271,107820.0,107810.0,0.19140383]
[1756704885540,0.44476534,107820.0,107810.0,0.19140383]
[1756704885739,0.44476534,107820.0,107810.0,0.00589229]
[1756704885965,0.44476534,107820.0,107810.0,0.19140383]
[1756704887060,0.259271,107820.0,107810.0,0.19140383]
[1756704887259,0.28768534,107820.0,107810.0,0.19140383]
[1756704887483,0.259271,107820.0,107810.0,0.19140383]
[1756704887890,0.44476534,107820.0,107810.0,0.19140383]
[1756704889043,0.28768534,107820.0,107810.0,0.19140383]
[1756704889250,0.44472534,107820.0,107810.0,0.19140383]
[1756704889868,0.259231,107820.0,107810.0,0.52632204]
[1756704890277,0.28768534,107820.0,107810.0,0.19140383]
[1756704890705,0.44472534,107820.0,107810.0,0.19140383]
[1756704890907,0.259231,107820.0,107810.0,0.19140383]
[1756704891124,0.44472534,107820.0,107810.0,0.19140383]
[1756704897715,0.259231,107820.0,107810.0,0.19140383]
[1756704898353,0.259191,107820.0,107810.0,0.19140383]
[1756704898525,0.102191,107820.0,107810.0,0.52632204]
[1756704898669,0.259191,107820.0,107810.0,0.52632204]
[1756704899252,0.258191,107820.0,107810.0,0.52632204]
[1756704899441,0.259191,107820.0,107810.0,0.52632204]
[1756704899616,0.257191,107820.0,107810.0,0.52632204]
[1756704900647,0.256191,107820.0,107810.0,0.52632204]
[1756704901676,0.101191,107820.0,107810.0,0.52632204]
[1756704901889,0.259151,107820.0,107810.0,0.52632204]
[1756704902804,0.258151,107820.0,107810.0,0.52632204]
[1756704903142,0.22828,107820.0,107810.0,0.86632204]
[1756704905813,0.22928,107820.0,107810.0,0.86632204]
[1756704906035,0.22928,107820.0,107810.0,0.86620164]
[1756704907412,0.22828,107820.0,107810.0,0.86620164]
[1756704909069,0.02791448,107830.0,107810.0,0.86620164]
[1756704909277,4.748e-05,107830.0,107820.0,0.85740863]
[1756704909517,0.15696748,107830.0,107820.0,0.85508996]
[1756704910814,0.15896748,107830.0,107820.0,0.85508996]
[1756704911253,0.15996748,107830.0,107820.0,0.18549434]
[1756704911493,0.34544461,107830.0,107820.0,0.52029215]
[1756704911725,0.34444461,107830.0,107820.0,0.52029215]
[1756704911982,0.15996748,107830.0,107820.0,0.52029215]
[1756704912656,0.15996748,107830.0,107820.0,0.18549434]
[1756704912964,0.34544461,107830.0,107820.0,0.52029215]
[1756704914573,0.15996748,107830.0,107820.0,0.52029215]
[1756704914703,0.18783148,107830.0,107820.0,0.52029215]
[1756704914909,0.37330861,107830.0,107820.0,0.52029215]
[1756704915353,0.21638861,107830.0,107820.0,0.52029215]
[1756704915582,0.37326861,107830.0,107820.0,0.52029215]
[1756704917383,0.34540461,107830.0,107820.0,0.52029215]
[1756704919701,0.15992748,107830.0,107820.0,0.85508996]
[1756704919905,0.15992748,107830.0,107820.0,0.52029215]
[1756704920531,0.15692748,107830.0,107820.0,0.52029215]
[1756704920667,4.748e-05,107830.0,107820.0,0.52029215]
[1756704920866,0.00304748,107830.0,107820.0,0.85508996]
[1756704921115,0.15988748,107830.0,107820.0,0.85508996]
[1756704921321,0.15688748,107830.0,107820.0,0.85508996]
[1756704923275,4.748e-05,107830.0,107820.0,0.85508996]
[1756704923478,0.15688748,107830.0,107820.0,0.85508996]
[1756704924730,4.748e-05,107830.0,107820.0,0.85508996]
[1756704924945,0.15688748,107830.0,107820.0,0.52029215]
[1756704925624,0.15688748,107830.0,107820.0,0.86029215]
[1756704935560,0.15684148,107830.0,107820.0,0.86029215]
[1756704936136,0.15684148,107830.0,107820.0,1.19508996]
[1756704937793,0.15684148,107830.0,107820.0,0.52549434]
[1756704938005,0.34231861,107830.0,107820.0,0.52549434]
[1756704938162,0.18551154,107810.0,107800.0,0.20389978]
[1756704938362,0.15676,107810.0,107800.0,0.53869759]
[1756704938585,0.15676,107810.0,107800.0,0.87869759]
[1756704938784,0.34227154,107810.0,107800.0,0.87869759]
[1756704938994,0.15676,107810.0,107800.0,0.87869759]
[1756704939601,0.15676,107810.0,107800.0,0.88069759]
[1756704940385,0.34227154,107810.0,107800.0,0.88069759]
[1756704940738,0.15676,107810.0,107800.0,0.88069759]
[1756704940939,0.15676,107810.0,107800.0,0.88269759]
[1756704941371,0.15676,107810.0,107800.0,0.58976906]
[1756704941577,0.15676,107810.0,107800.0,0.92456687]
[1756704943597,0.28464334,107820.0,107810.0,0.18551154]
[1756704943771,0.28464334,107820.0,107810.0,0.52620164]
[1756704943772,0.44136334,107820.0,107810.0,0.52620164]
[1756704943974,0.255869,107820.0,107810.0,0.52620164]
[1756704944256,0.44136334,107820.0,107810.0,0.52620164]
[1756704945016,0.44136334,107820.0,107810.0,0.19140383]
[1756704945256,0.44136334,107820.0,107810.0,0.52620164]
[1756704945676,0.44136334,107820.0,107810.0,0.52720164]
[1756704945880,0.44136334,107820.0,107810.0,0.00689229]
[1756704946147,0.44136334,107820.0,107810.0,0.3416901]
[1756704946353,0.44136334,107820.0,107810.0,0.3426901]
[1756704946550,0.44136334,107820.0,107810.0,0.52820164]
[1756704947310,0.44136334,107820.0,107810.0,0.3426901]
[1756704947476,0.44136334,107820.0,107810.0,0.00789229]
[1756704947691,0.71242116,107820.0,107810.0,0.00789229]
[1756704947894,0.37762335,107820.0,107810.0,0.00789229]
[1756704948104,0.53434335,107820.0,107810.0,0.00789229]
[1756704948308,0.37762335,107820.0,107810.0,0.00789229]
[1756704948505,0.53434335,107820.0,107810.0,0.00789229]
[1756704948714,0.099149,107820.0,107810.0,0.53052053]
[1756704948942,0.255869,107820.0,107810.0,0.52820164]
[1756704949144,0.255869,107820.0,107810.0,0.52720164]
[1756704949559,0.256869,107820.0,107810.0,0.52720164]
[1756704950064,0.255869,107820.0,107810.0,0.52720164]
[1756704950275,0.256869,107820.0,107810.0,0.52620164]
[1756704950680,0.102149,107820.0,107810.0,0.52620164]
[1756704951111,0.258829,107820.0,107810.0,0.52620164]
[1756704951329,0.44432334,107820.0,107810.0,0.19140383]
[1756704951443,0.44432334,107820.0,107810.0,0.52620164]
[1756704951844,0.41445434,107820.0,107810.0,0.52620164]
[1756704952268,0.41345434,107820.0,107810.0,0.52620164]
[1756704952504,0.22796,107820.0,107810.0,0.52620164]
[1756704952647,0.22996,107820.0,107810.0,0.52620164]
[1756704952859,0.07328,107820.0,107810.0,0.52620164]
[1756704953056,0.22996,107820.0,107810.0,0.52620164]
[1756704953592,0.23096,107820.0,107810.0,0.52620164]
[1756704953807,0.22896,107820.0,107810.0,0.52620164]
[1756704954660,0.07228,107820.0,107810.0,0.86620164]
[1756704954796,0.22896,107820.0,107810.0,0.86620164]
[1756704956568,0.15768,107820.0,107810.0,1.20099945]
[1756704957423,0.001,107820.0,107810.0,1.20099945]
[1756704957834,0.001,107820.0,107810.0,1.35099945]
[1756704958533,0.15668148,107830.0,107820.0,0.52549434]
[1756704958765,0.15668148,107830.0,107820.0,1.19508996]
[1756704959141,1.48e-06,107830.0,107820.0,1.19508996]
[1756704959146,1.48e-06,107830.0,107820.0,1.35172996]
[1756704960534,1.48e-06,107830.0,107820.0,1.19608996]
[1756704961356,1.48e-06,107830.0,107820.0,1.19508996]
[1756704961753,1.48e-06,107830.0,107820.0,0.52549434]
[1756704961948,1.48e-06,107830.0,107820.0,1.19508996]
[1756704962153,1.48e-06,107830.0,107820.0,0.52549434]
[1756704962354,1.48e-06,107830.0,107820.0,1.19508996]
[1756704962844,0.00100148,107830.0,107820.0,1.19508996]
[1756704963050,0.00100148,107830.0,107820.0,1.19608996]
[1756704963428,1.48e-06,107830.0,107820.0,1.19608996]
[1756704963988,1.48e-06,107830.0,107820.0,0.86120773]
[1756704965713,0.00100148,107830.0,107820.0,0.52649434]
[1756704965923,0.00100148,107830.0,107820.0,0.86120773]
[1756704966349,0.00100148,107830.0,107820.0,0.86020773]
[1756704966697,1.48e-06,107830.0,107820.0,0.86020773]
[1756704967308,1.48e-06,107830.0,107820.0,0.86120773]
[1756704967510,1.48e-06,107830.0,107820.0,1.19592112]
[1756704972746,1.48e-06,107830.0,107820.0,1.35252112]
[1756704973689,1.48e-06,107830.0,107820.0,1.35152112]
[1756704974316,1.48e-06,107830.0,107820.0,1.19492112]
[1756704974520,1.48e-06,107830.0,107820.0,1.35248112]
[1756704975145,0.00100148,107830.0,107820.0,1.35248112]
[1756704975530,1.48e-06,107830.0,107820.0,1.35248112]
[1756704981607,1.48e-06,107830.0,107820.0,1.44546113]
[1756704982224,1.48e-06,107830.0,107820.0,1.44542113]
[1756704982707,1.48e-06,107830.0,107820.0,1.47328113]
[1756704985117,1.48e-06,107830.0,107820.0,1.31676113]
[1756704985319,1.48e-06,107830.0,107820.0,1.47328113]
[1756704986390,1.48e-06,107830.0,107820.0,1.87328113]
[1756704989520,1.48e-06,107830.0,107820.0,1.53769995]
[1756704989849,1.48e-06,107830.0,107820.0,1.69417995]
[1756704990052,1.48e-06,107830.0,107820.0,2.09417995]
[1756704992662,1.48e-06,107830.0,107820.0,2.09372527]
[1756704994076,1.48e-06,107830.0,107820.0,2.29372527]
[1756704996545,1.48e-06,107830.0,107820.0,2.13724527]
[1756704996756,1.48e-06,107830.0,107820.0,2.29372527]
[1756704998582,1.48e-06,107830.0,107820.0,2.13724527]
[1756704998819,1.48e-06,107830.0,107820.0,2.29368527]
[1756705001213,1.48e-06,107830.0,107820.0,2.36496527]
[1756705001416,0.004,107840.0,107830.0,0.69112934]
[1756705001611,0.004,107840.0,107830.0,0.94644164]
[1756705001978,0.004,107840.0,107830.0,1.28079877]
[1756705002512,0.004,107840.0,107830.0,1.30865677]
[1756705002723,0.004,107840.0,107830.0,1.98319203]
[1756705003119,0.004,107840.0,107830.0,1.89221677]
[1756705003327,0.004,107840.0,107830.0,2.04865677]
[1756705003525,0.005,107840.0,107830.0,2.04865677]
[1756705004260,0.004,107840.0,107830.0,1.71411371]
[1756705004703,0.005,107840.0,107830.0,1.71411371]
[1756705005261,0.005,107840.0,107830.0,1.75609248]
[1756705006218,0.004,107840.0,107830.0,1.75609248]
[1756705006427,0.004,107840.0,107830.0,1.75709248]
[1756705006916,0.004,107840.0,107830.0,1.75909248]
[1756705007121,0.004,107840.0,107830.0,2.09361994]
[1756705007323,0.00166364,107840.0,107830.0,2.09361994]
[1756705007537,0.00166364,107840.0,107830.0,1.75909248]
[1756705008153,0.00166364,107840.0,107830.0,1.75609248]
[1756705008551,0.00166364,107840.0,107830.0,1.76009248]
[1756705009454,0.00166364,107840.0,107830.0,1.76209248]
[1756705013322,0.00070895,107840.0,107830.0,1.76209248]
[1756705014309,0.00070895,107840.0,107830.0,1.75809248]
[1756705016116,0.00070895,107840.0,107830.0,1.75909248]
[1756705016662,0.00070895,107840.0,107830.0,1.75809248]
[1756705016839,0.00070895,107840.0,107830.0,1.75609248]
[1756705017020,0.00070895,107840.0,107830.0,2.25709248]
[1756705017223,0.00070895,107840.0,107830.0,2.25909248]
[1756705017780,0.00070895,107840.0,107830.0,2.59361994]
[1756705017987,0.00070895,107840.0,107830.0,2.55164117]
[1756705018201,0.00070895,107840.0,107830.0,2.21711371]
[1756705019372,0.00030508,107840.0,107830.0,2.21711371]
[1756705020427,0.00030508,107840.0,107830.0,2.25918856]
[1756705023534,0.00030508,107840.0,107830.0,2.59371602]
[1756705023728,1e-08,107840.0,107830.0,2.59371602]
[1756705023971,8e-05,107850.0,107840.0,0.92545994]
[1756705024188,8e-05,107850.0,107840.0,2.24925309]
[1756705024189,0.00012748,107850.0,107840.0,2.24925309]
[1756705024461,1e-08,107850.0,107840.0,2.24925309]
[1756705024683,1e-08,107850.0,107840.0,3.01150947]
[1756705024921,0.004,107870.0,107860.0,1.09636437]
[1756705025118,0.00404748,107870.0,107860.0,2.42600981]
[1756705025596,0.00404748,107870.0,107860.0,2.85385681]
[1756705026012,1e-08,107870.0,107860.0,2.51923143]
[1756705026327,0.0725143,107890.0,107880.0,0.87539117]
[1756705026573,0.07298917,107890.0,107880.0,1.79917123]
[1756705026824,0.07298917,107890.0,107880.0,2.30824217]
[1756705027026,0.07298917,107890.0,107880.0,2.33608717]
[1756705027224,0.00087487,107890.0,107880.0,2.33608717]
[1756705028177,0.00087487,107890.0,107880.0,2.33708717]
[1756705028570,0.00087487,107890.0,107880.0,2.18076717]
[1756705028794,0.00087487,107890.0,107880.0,2.33704717]
[1756705029001,0.00087487,107890.0,107880.0,2.00275329]
[1756705029215,0.00087487,107890.0,107880.0,2.04406123]
[1756705029458,0.00087487,107890.0,107880.0,1.88778123]
[1756705029643,0.00087487,107890.0,107880.0,2.04406123]
[1756705030075,0.00087487,107890.0,107880.0,2.04306123]
[1756705030076,0.00187487,107890.0,107880.0,2.04306123]
[1756705031743,0.18724886,107890.0,107880.0,1.38678123]
[1756705031963,0.00187487,107890.0,107880.0,1.54306123]
[1756705032177,0.00087487,107890.0,107880.0,1.54306123]
[1756705033411,0.18624886,107890.0,107880.0,0.95950734]
[1756705033610,0.18624886,107890.0,107880.0,0.91574734]
[1756705033829,0.18624886,107890.0,107880.0,0.42411617]
[1756705034032,0.52054274,107890.0,107880.0,0.05627117]
[1756705034446,0.52054274,107890.0,107880.0,0.04720023]
[1756705034865,0.54839474,107890.0,107880.0,0.04720023]
[1756705035489,0.64137475,107890.0,107880.0,0.04720023]
[1756705035697,0.64137475,107890.0,107880.0,0.00589229]
[1756705035901,0.64237475,107890.0,107880.0,0.00589229]
[1756705036531,0.651691,107890.0,107880.0,0.00589229]
[1756705046477,0.18542555,107860.0,107850.0,0.18544274]
[1756705046691,0.34160836,107870.0,107850.0,0.19133503]
[1756705047135,0.36946336,107870.0,107850.0,0.19133503]
[1756705047345,0.18542555,107860.0,107850.0,0.5407836]
[1756705047547,0.18542555,107860.0,107850.0,0.35534086]
[1756705047893,0.18542555,107860.0,107850.0,0.5407836]
[1756705048098,0.18542555,107860.0,107850.0,0.5437836]
[1756705048301,0.18542555,107860.0,107850.0,0.58737869]
[1756705049827,0.21326336,107870.0,107850.0,0.58737869]
[1756705050190,0.70375724,107870.0,107850.0,0.58737869]
[1756705050395,0.36946336,107870.0,107860.0,0.18774336]
[1756705050603,0.36946336,107870.0,107860.0,0.18542555]
[1756705051877,0.027855,107870.0,107860.0,1.45889944]
[1756705052142,0.15707487,107890.0,107880.0,0.18539117]
[1756705052347,0.18492587,107890.0,107880.0,0.19128346]
[1756705052568,0.18492587,107890.0,107880.0,0.23311333]
[1756705053330,0.37029986,107890.0,107880.0,0.23311333]
[1756705054035,0.02872587,107890.0,107880.0,0.57311333]
[1756705054230,0.00087487,107890.0,107880.0,0.90740721]
[1756705054461,0.00087487,107890.0,107880.0,0.57311333]
[1756705054664,0.00087487,107890.0,107880.0,0.90740721]
[1756705054889,0.00187487,107890.0,107880.0,1.10740721]
[1756705055613,0.00087487,107890.0,107880.0,1.97685992]
[1756705055849,0.0044,107900.0,107890.0,0.54631281]
[1756705056061,0.0044,107900.0,107890.0,1.1297467]
[1756705056274,0.0004,107910.0,107900.0,1.09629563]
[1756705056478,0.00054238,107910.0,107900.0,1.60070181]
[1756705056684,0.00054238,107910.0,107900.0,1.75686181]
[1756705057746,0.00054238,107910.0,107900.0,2.09115569]
[1756705058119,0.00054238,107910.0,107900.0,2.09215569]
[1756705058327,0.00054238,107910.0,107900.0,1.75886181]
[1756705058528,0.00054238,107910.0,107900.0,2.09315569]
[1756705059138,0.00112261,107920.0,107910.0,1.21486621]
[1756705059300,0.00112261,107920.0,107910.0,1.30784622]
[1756705059951,0.00112261,107920.0,107910.0,1.17236719]
[1756705060171,0.00112261,107920.0,107910.0,1.57236719]
[1756705061041,0.00112261,107920.0,107910.0,1.42199619]
[1756705061274,0.00112261,107920.0,107910.0,1.57811619]
[1756705062337,0.0004,107920.0,107910.0,1.91241007]
[1756705062775,0.0004,107920.0,107910.0,1.91341007]
[1756705064482,0.0004,107920.0,107910.0,1.91441007]
[1756705064864,0.0004,107920.0,107910.0,1.08970231]
[1756705065106,0.0004,107920.0,107910.0,1.15913737]
[1756705065915,0.0004,107920.0,107910.0,1.15813737]
[1756705066124,0.0004,107920.0,107910.0,0.82284349]
[1756705066476,0.0004,107920.0,107910.0,1.15713737]
[1756705067361,0.0004,107920.0,107910.0,0.66676349]
[1756705067562,0.0004,107920.0,107910.0,1.00105737]
[1756705067931,0.0004,107920.0,107910.0,1.15713737]
[1756705068132,0.0004,107920.0,107910.0,1.00105737]
[1756705068333,0.0004,107920.0,107910.0,1.15713737]
[1756705069438,0.0004,107920.0,107910.0,0.82284349]
[1756705069674,0.0004,107920.0,107910.0,0.22803448]
[1756705069900,0.0004,107920.0,107910.0,0.99530837]
[1756705071247,0.0004,107920.0,107910.0,1.01624719]
[1756705071869,0.0004,107920.0,107910.0,0.68195331]
[1756705072260,0.0004,107920.0,107910.0,1.01624719]
[1756705073344,0.0004,107920.0,107910.0,1.35054107]
[1756705074207,0.0004,107920.0,107910.0,1.35154107]
[1756705074985,0.0004,107920.0,107910.0,1.01824719]
[1756705075604,0.0004,107920.0,107910.0,1.35254107]
[1756705076386,0.03268038,107970.0,107910.0,1.35254107]
[1756705076666,0.00014235,107950.0,107940.0,0.18528812]
[1756705076863,0.00014235,107950.0,107940.0,0.19118041]
[1756705077410,0.00014235,107950.0,107940.0,1.02151429]
[1756705078806,0.00214235,107950.0,107940.0,1.02151429]
[1756705079555,0.00214235,107950.0,107940.0,0.68722041]
[1756705079767,0.00214235,107950.0,107940.0,1.02151429]
[1756705080179,0.00014235,107950.0,107940.0,1.02151429]
[1756705080411,0.00014235,107950.0,107940.0,1.02147429]
[1756705080606,0.00114235,107950.0,107940.0,0.53118041]